Cogmind - Beta 16 @@@ ROGUE MODE // 2025.12.01 @ 14:41:32 Player: lvl5hm Result: Destroyed by Y-54 Guardian with Flak Gun Performance ------------- Evolutions (0) 0 Regions Visited (3) 600 Robots Destroyed (35) 175 Value Destroyed (811) 811 Prototype IDs (0) 0 Alien Tech Used (0) 0 Bonus (-26) -26 TOTAL SCORE: 1560 Bonus ------- Friendly Fire -26 Cogmind --------- Core Integrity 0/250 Matter 288/300 Energy 172/200 System Corruption 0% Temperature Cool (67) Movement Core (850) Ox16 Location -7/Recycling Parts ------- > --- POWER (1) -------- Subdweller Power Source > --- PROPULSION (2) --- (None) > --- UTILITY (2) ------ Heat Sink High-capacity Storage Unit > --- WEAPON (2) ------- Spread Laser Battle Rifle > --- INVENTORY (20) --- Subdweller Monowheel Large Matter Pod (150) Assault Rifle Battle Rifle Subdweller Machine Gun Rocket Launcher Multitool Peak State ------------ > --- POWER ------------ Subdweller Power Source > --- PROPULSION ------- Light Treads Light Treads > --- UTILITY ---------- Medium Storage Unit Seismic Detector > --- WEAPON ----------- Spread Laser Spread Laser > --- INVENTORY -------- Light Treads Subdweller Monowheel Heat Sink Large Matter Pod Spread Laser Assault Rifle Battle Rifle Subdweller Machine Gun Rocket Launcher [Rating: 11] Favorites ----------- Power Ion Engine Engine Ion Engine Propulsion Light Treads Treads Light Treads Utility Seismic Detector Device Seismic Detector Storage Medium Storage Unit Weapon Spread Laser Energy Gun Spread Laser Ballistic Gun Light Assault Rifle Launcher Rocket Launcher Special Weapon Mining Laser Build | -11 -10 -10 -7 ------- Run | Yrd Mat Sub Rec Slots Evolved . | . . . . Power . | . . . . Propulsion . | . . . . Utility . | . . . . Weapon . | . . . . Parts Attached 25 | 7 7 10 1 Power 2 | 1 . 1 . Engine 2 | 1 . 1 . Core . | . . . . Reactor . | . . . . Propulsion 4 | 2 . 2 . Treads 4 | 2 . 2 . Leg . | . . . . Wheel . | . . . . Hover . | . . . . Flight . | . . . . Utility 7 | 2 2 3 . Device 4 | 1 1 2 . Storage 3 | 1 1 1 . Processor . | . . . . Hackware . | . . . . Protection . | . . . . Artifact . | . . . . Weapon 12 | 2 5 4 1 Energy Gun 5 | . 3 2 . Energy Cannon . | . . . . Ballistic Gun 5 | 2 1 1 1 Ballistic Cannon . | . . . . Launcher 1 | . 1 . . Special Weapon 1 | . . 1 . Impact Weapon . | . . . . Slashing Weapon . | . . . . Piercing Weapon . | . . . . Special Melee Weapon . | . . . . Unidentified Prototypes . | . . . . Parts Lost 11 | . . 9 2 Power 1 | . . 1 . Propulsion 4 | . . 2 2 Utility 2 | . . 2 . Weapon 4 | . . 4 . Highest Loss Streak 3 | . . 3 2 To Critical Strikes . | . . . . Average Backups 7 | . 7 9 7 Power . | . . . . Propulsion 1 | . . 1 1 Utility 2 | . 2 2 1 Weapon 4 | . 4 5 4 Tool/Special . | . . . . Unused Backups 5 | . 1 . 4 Power . | . . . . Propulsion 1 | . . . 1 Utility 2 | . 1 . 1 Weapon 1 | . . . 1 Tool/Special 1 | . . . 1 Average Slot Usage (%) 97 | . 100 93 87 Engine 13 | . 14 13 14 Treads 27 | . 28 27 24 Device 13 | . 14 13 14 Storage 14 | . 14 14 14 Energy Gun 23 | . 25 23 14 Ballistic Gun 1 | . 2 . 6 Peak Build Rating 11 | 7 10 11 11 Average Rating 9 | 5 9 9 9 On Entrance 6 | . 7 10 9 Avg Prop Armor Cover (%) . | . . . . Naked Turns . | . . . . Heaviest Build 53 | 13 23 53 51 Greatest Support 40 | 40 40 40 40 Greatest Overweight (x) 2 | . . 2 1 Average Overweight (x) . | . . . 1 Largest Inventory Capacity 20 | 8 10 20 20 Average Capacity 11 | 7 9 14 20 Most Carried 11 | 2 10 11 8 Average Carried 7 | . 7 9 7 Final Capacity 20 | 8 10 20 20 Final Carried 10 | 2 10 8 7 Class Distribution -------------------- 98% | Mutant Dominant Class ---------------- Mutant | -10/Materials Mutant | -10/Subcaves Mutant | -7/Recycling Resources | -11 -10 -10 -7 ----------- Run | Yrd Mat Sub Rec Matter Collected 955 | 232 515 208 . Remotely . | . . . . Salvage Created 839 | 51 423 365 . Parts 52 | 7 18 27 . Haulers Intercepted 1 | . 1 . . Recyclers Shooed 2 | 1 1 . . Parts Field Recycled . | . . . . Retrieved Matter . | . . . . Parts Self-Destructed 13 | . . 13 . Prevented . | . . . . Parts Restored . | . . . . Kills | -11 -10 -10 -7 ------- Run | Yrd Mat Sub Rec Combat Hostiles Destroyed 25 | . 7 18 . Guns 23 | . 7 16 . AOE 2 | . . 2 . Classes Destroyed 10 | 1 6 3 . Worker 1 | . 1 . . Tunneler 2 | 2 . . . Hauler 1 | . 1 . . Recycler 3 | . 3 . . Turret 2 | . . 2 . Watcher 1 | . 1 . . Swarmer 10 | . 3 7 . Grunt 6 | . 4 2 . Artisan 1 | . . 1 . Subdweller 9 | . . 9 . Best Kill Streak 4 | 1 4 4 . Combat Bots Only 4 | . 3 4 . Max Kills in Single Turn 2 | 1 1 2 . Gunslinging 1 | . . 1 . Exploded 1 | . . 1 . Melee . | . . . . Uniques/NPCs Destroyed . | . . . . Combat | -11 -10 -10 -7 -------- Run | Yrd Mat Sub Rec Hostile Shots Fired 175 | . 17 122 36 Missed 53 | . 3 37 13 Hits 122 | . 14 85 23 Projectile 122 | . 14 85 23 Critical Strikes 2 | . 1 1 . Damage Taken 1392 | . 176 1047 169 Core 253 | . 18 207 28 Absorbed by Shields . | . . . . Regen/Repaired (Parts) 54 | . 54 . . Core Remaining (%) 100 | 100 . . . Volleys Fired 102 | 14 34 50 4 Largest 2 | 2 2 2 2 Hottest 130 | 40 130 130 90 Shots Fired 191 | 28 65 90 8 Gun 184 | 28 62 86 8 Cannon . | . . . . Launcher 6 | . 3 3 . Special 1 | . . 1 . Kinetic 50 | 28 13 5 4 Thermal 135 | . 49 82 4 Explosive 6 | . 3 3 . Electromagnetic . | . . . . Robot Hit Streak 16 | 8 15 16 6 Robot Miss Streak 9 | 2 9 6 2 Penetration Max . | . . . . Secondary Targets 4 | . . 4 . Max Gunslinging Chain 1 | . . 1 . Shots Hit Robots 153 | 18 48 81 6 Core Hits 157 | 5 50 98 4 Critical Kills . | . . . . Critical Parts Destroyed . | . . . . Critical Strikes . | . . . . Melee Attacks . | . . . . Impact . | . . . . Slashing . | . . . . Piercing . | . . . . Sneak Attacks . | . . . . Combat Hostiles . | . . . . Follow-up Attacks . | . . . . Damage Inflicted 2309 | 148 610 1459 92 Guns 2063 | 148 610 1213 92 Cannons . | . . . . Explosions 246 | . . 246 . Melee . | . . . . Ramming . | . . . . Kinetic 352 | 148 92 84 28 Thermal 1711 | . 518 1129 64 Explosive 246 | . . 246 . Electromagnetic . | . . . . Impact . | . . . . Slashing . | . . . . Piercing . | . . . . Highest Corruption . | . . . . Average Corruption . | . . . . Corruption Purged . | . . . . Corruption Blocked . | . . . . Overload Shots . | . . . . Overflow Damage 61 | . . 61 . Projectiles . | . . . . Explosions 61 | . . 61 . Melee . | . . . . Knockbacks . | . . . . Impact . | . . . . Kinetic . | . . . . Secondary . | . . . . Self-Inflicted Damage 84 | . 28 56 . Shots 3 | . 1 2 . Rammed 1 | . 1 . . Targets Rammed 1 | . 1 . . Kicked . | . . . . Crushed . | . . . . Highest Temperature 405 | . 405 27 58 Average Temperature 94 | . 124 9 37 Received Heat Transfer 468 | . 78 336 54 Effects 2 | . 2 . . Shutdowns 1 | . 1 . . Energy Bleed 1 | . 1 . . Siege Activations . | . . . . Martial Activations . | . . . . Shielding Activations . | . . . . Robots Disrupted . | . . . . Combat Hostiles . | . . . . Robots Corrupted . | . . . . Combat Hostiles . | . . . . Parts Fried . | . . . . Impact Corruptions . | . . . . Robots Melted . | . . . . Combat Hostiles . | . . . . Parts Melted 1 | . . 1 . Heat Transferred 2245 | . 750 1410 85 Parts Sabotaged . | . . . . Parts Stolen . | . . . . Parts Stripped . | . . . . Power Chain Reactions . | . . . . Alert | -11 -10 -10 -7 ------- Run | Yrd Mat Sub Rec Maximum Alert Level . | . . . . Low Security (%) 100 | 100 100 . 100 Level 1 . | . . . . Level 2 . | . . . . Level 3 . | . . . . Level 4 . | . . . . Level 5 . | . . . . High Security . | . . . . Max Security . | . . . . Peak Influence 60 | 5 60 . . Initial . | . . . . Average 10 | . 12 . . Influence Increases 644 | 10 274 360 . Destroy 0b10 Robot/C 360 | . 140 220 . Destroy 0b10 Robot/NC 40 | 10 30 . . Destroy Leader 54 | . 34 20 . Successful Hack 15 | . 15 . . Disable Machine 15 | . 15 . . Destroy Structure 25 | . 25 . . Lose Combat Pursuer 135 | . 15 120 . Influence Decreases 644 | 10 274 360 . Time Decay 584 | 10 274 300 . Lost Part 60 | . . 60 . Squads Dispatched 5 | . 5 . . Investigation 3 | . 3 . . Extermination . | . . . . Reinforcement 2 | . 2 . . Assault . | . . . . Garrison . | . . . . Intercept . | . . . . Searches Triggered . | . . . . Construction Impeded . | . . . . Haulers Reinforced . | . . . . Active Scanning Responses . | . . . . Cargo Convoy Interrupts . | . . . . Stealth | -11 -10 -10 -7 --------- Run | Yrd Mat Sub Rec Distress Signals 2 | . 2 . . Communications Jammed . | . . . . Distress Signals . | . . . . Times Spotted 41 | . 16 23 2 Peak Tracking Total 6 | . 3 6 2 Tactical Retreats 5 | . 1 4 . Traps | -11 -10 -10 -7 ------- Run | Yrd Mat Sub Rec Traps Triggered 1 | . 1 . . Indirectly . | . . . . Trap Hack Attempts . | . . . . Triggered . | . . . . Disarmed . | . . . . Reprogrammed . | . . . . Reused . | . . . . Traps Extracted . | . . . . Installed . | . . . . Triggered . | . . . . Machines | -11 -10 -10 -7 ---------- Run | Yrd Mat Sub Rec Machines Disabled 1 | . 1 . . Max in Single Turn 1 | . 1 . . Machines Repaired . | . . . . Machines Dismantled . | . . . . Machines Sabotaged . | . . . . Overloaded Fab Kills . | . . . . Hacking | -11 -10 -10 -7 --------- Run | Yrd Mat Sub Rec Machines Accessed 7 | . 7 . . Terminals 6 | . 6 . . Fabricators . | . . . . Repair Stations 1 | . 1 . . Recycling Units . | . . . . Scanalyzers . | . . . . Garrison Access . | . . . . Total Hacks 17 | . 17 . . Successful 5 | . 5 . . Failed 12 | . 12 . . Catastrophic 1 | . 1 . . Database Lockouts . | . . . . Manual 11 | . 11 . . Terminals 15 | . 15 . . Fabricators . | . . . . Repair Stations 2 | . 2 . . Recycling Units . | . . . . Scanalyzers . | . . . . Garrison Access . | . . . . Terminal Hacks 2 | . 2 . . Robot Analysis 2 | . 2 . . Fabricator Hacks . | . . . . Repair Station Hacks 2 | . 2 . . Scan Component 1 | . 1 . . Repair 1 | . 1 . . Recycling Unit Hacks . | . . . . Scanalyzer . | . . . . Garrison Access Hacks . | . . . . Unauthorized Hacks 1 | . 1 . . Terminals 1 | . 1 . . Botnet 1 | . 1 . . Fabricators . | . . . . Repair Stations . | . . . . Recycling Units . | . . . . Scanalyzers . | . . . . Garrison Access . | . . . . Data Cores Recovered . | . . . . Used . | . . . . Hacking Detections 6 | . 6 . . Full Trace Events 2 | . 2 . . Feedback Events . | . . . . Feedback Blocked . | . . . . Robot Schematics Acquired . | . . . . Robots Built . | . . . . Authchips . | . . . . Time . | . . . . Total Robot Build Rating . | . . . . Part Schematics Acquired . | . . . . Parts Built . | . . . . Authchips . | . . . . Time . | . . . . Total Part Build Rating . | . . . . Part Studies Acquired . | . . . . Parts Repaired 1 | . 1 . . Time 26 | . 26 . . Parts Recycled . | . . . . Recycled Matter . | . . . . Retrieved Matter . | . . . . Retrieved Components . | . . . . Parts Scanalyzed . | . . . . Part Schematics Acquired . | . . . . Parts Damaged . | . . . . Bothacking | -11 -10 -10 -7 ------------ Run | Yrd Mat Sub Rec Used RIF Installer . | . . . . Robots Hacked . | . . . . Non-combat . | . . . . Combat . | . . . . Robot Hacks Applied . | . . . . Relay Couplers Released . | . . . . Fabnet Peak Effective % . | . . . . Robots Rewired . | . . . . Allies Hacked . | . . . . Hacks Repelled . | . . . . Allies | -11 -10 -10 -7 -------- Run | Yrd Mat Sub Rec Total Allies . | . . . . Largest Group . | . . . . Highest-Rated Group . | . . . . Highest-Rated Ally . | . . . . Total Orders . | . . . . Ally Attacks . | . . . . Total Damage . | . . . . Kills . | . . . . Allies Corrupted . | . . . . Allies Melted . | . . . . Intel | -11 -10 -10 -7 ------- Run | Yrd Mat Sub Rec Active Infowar (turns) 1877 | 64 1393 420 . Seismic 1877 | 64 1393 420 . Robot Analysis Total 2 | . 2 . . Derelict Logs Recovered 1 | . . 1 . Drone Launches . | . . . . Drone Recoveries . | . . . . Exploration | -11 -10 -10 -7 ------------- Run | Yrd Mat Sub Rec Turns Passed 2649 | 151 1393 1050 55 Spaces Moved 1206 | 65 688 435 18 Core 1 | 1 . . . Treads 1205 | 64 688 435 18 Legs . | . . . . Wheels . | . . . . Hover . | . . . . Flight . | . . . . Fastest Speed 50 | 50 160 160 240 Average Speed 171 | 158 160 188 240 Slowest Speed 320 | 160 160 320 240 Overloaded Moves . | . . . . Propulsion Burnouts . | . . . . Robots Hopped . | . . . . Potential Cave-ins . | . . . . Cave-ins Triggered . | . . . . Exploration Rate (%) 31 | 5 92 23 4 Regions Visited 3 Branch Regions 2 Pre-discovered Areas . | . . . . Known Exits Taken . | . . . . Unknown Exits Taken 3 | 1 1 1 . Scrap Searched . | . . . . Spaces Dug 29 | . 29 . . Terrain Destroyed 58 | . 29 29 . Melee . | . . . . Projectile . | . . . . AOE 58 | . 29 29 . Terrain Rammed . | . . . . Walls Destroyed . | . . . . Machines Disabled . | . . . . Actions | -11 -10 -10 -7 --------- Run | Yrd Mat Sub Rec Total 1585 | 87 909 566 23 Wait 212 | . 157 55 . Move 1203 | 64 687 434 18 Hop . | . . . . Pick Up 18 | 2 11 5 . Fast Attach 9 | 7 . 2 . Attach 8 | . . 7 1 Detach 1 | . . 1 . Swap 26 | . 15 11 . Drop 5 | . 4 1 . Fire 102 | 14 34 50 4 Melee . | . . . . Ram . | . . . . Kick . | . . . . Crush 1 | . 1 . . Escape Stasis . | . . . . Rewire . | . . . . Trap . | . . . . Miscellaneous . | . . . . Route ------- -11/Scrapyard -10/Materials (discovered 5 exits: [*Mat x3] / [*Min] / [*Sub]) -10/Subcaves -7/Recycling History --------- Turn | Location | Event 7 | -11/Scrapyard | Discovered new exit (range 16) 152 | -11/Scrapyard | Entered Materials 309 | -10/Materials | Build established: Mutant 447 | -10/Materials | Discovered new exit (range 6) 640 | -10/Materials | Discovered new exit (range 13) 1082 | -10/Materials | Discovered new exit (range 16) 1364 | -10/Materials | Discovered new exit (range 12) 1366 | -10/Materials | Repaired Lgt. Treads? 1532 | -10/Materials | Discovered new exit (range 4) 1545 | -10/Materials | Entered Subcaves 1546 | -10/Subcaves | Approached by a straggling Scientist 1787 | -10/Subcaves | Shifting Twisted Machinery released Sub. Monowheel 1792 | -10/Subcaves | Shifting Twisted Machinery released Battle Rifle 1822 | -10/Subcaves | Discovered new exit (range 8) 2098 | -10/Subcaves | Core integrity fell below 50% 2136 | -10/Subcaves | Lost 3 parts (1p1u1w) 2293 | -10/Subcaves | Core integrity fell below 20% 2337 | -10/Subcaves | Lost 3 parts (1n2w) 2595 | -10/Subcaves | Entered Recycling 2596 | -7/Recycling | Met a Zionite searching for Scraptown 2650 | -7/Recycling | Destroyed by Y-54 Guardian with Flak Gun Last Messages --------------- 02312_ VI-ONJ(R) destroyed. 02317_ Acquired 24 matter. 02333_ Subatomizers dissect the Sub. Power Source. 02341_ Acquired 11 matter. 02345_ Subatomizers dissect the Sub. Power Source. LOCATION=UNKNOWN GOAL=ESCAPE 02596_ 6M-XXB(z): "You there! You wouldn't happen to know where Scraptown is, do you?" 02597_ 6M-XXB(z): "I've heard great things about that place, but almost no one seems to know where to find it, only that you access it somewhere from Recycling here." 02598_ 6M-XXB(z): "Anyway I've been here searching too long already, time to slink back to the caves before I'm caught. You'd best do the same." 02639_ Lgt. Treads destroyed. Map ----- +----------------------------------------------------+ | ????????????????????????????????? | | ????????????????????????????????? | | ????????????????????????????????? | | ????????????????????????????????? | | ????????????????????????????????? | | ????????????????????????????????? | | ????????????????????????????????? | | ????????????????????????????????? | | ????????????????????????????????? | | ????????????????????????????????? | | ????????????????????????????????? | | ????????????????????????????????? | | ????????????????????????????????? | | ????????????????????????????????? | | ????????????????????????????????? | | ????????????????????????????????? | | ????????????????????????????????? | | ????????????????????????????????? | | ????????????????????????????????? | | ?????###+###?????#??????????????? | | ?????# ##### #??????????????? | | ?????# T ???????????????? | | ?????# "" r?????????????????? | | ?????# YY???????????????????? | | ?????# #????????????????????? | | ??????# @ #?????????????????????? | | ??????# #?????????????????????? | | ??????# #?????????????????????? | | ??????# #?????????????????????? | | ??????# #?????????????????????? | | ??????# #?????????????????????? | | ??????# #?????????????????????? | | ??????# #?????????????????????? | | ??????# #?????????????????????? | | ??????# #?????????????????????? | | ??????# #?????????????????????? | | ??????# #?????????????????????? | | ??????# #?????????????????????? | | ??????# #?????????????????????? | | ??????# #?????????????????????? | | ??????# #?????????????????????? | | ??????# #?????????????????????? | | ??????# #?????????????????????? | | ??????# #?????????????????????? | | ??????# #?????????????????????? | | ??????#####?????????????????????? | | ????????????????????????????????? | | ????????????????????????????????? | | ????????????????????????????????? | | ????????????????????????????????? | +----------------------------------------------------+ Best States ------------- Heat Dissipation 35 Energy Generation 15 Energy Capacity 250 Matter Stores 300 Matter Capacity 300 Sight Range 16 Terrain Scan Density 10 Evasion (%) 40 Recoil Reduction 2 Item Schematics ----------------- None Robot Schematics ------------------ None Fabricated ------------ Nothing Repaired ---------- Lgt. Treads | 61% | -10/Materials Studied --------- None Alien Tech Used ----------------- None Achievements -------------- None Challenges ------------ None Game ------ Seed PiercingAssembledFrame Manual? 0 Play Time 00:14:56 Cumulative 253.8 hours Start 2025.12.01 @ 14:27:02 End 2025.12.01 @ 14:41:32 Sessions 1 Manual Loads 0 Difficulty Rogue Special Mode None Game No. 191 Rogue 191 Adventurer 0 Explorer 0 Win Type - Total 11 Types 6/0/2/1/0/0/0/1/0/1 Lore% 67 Gallery% 74 Achievement% 67 Wizard Run 0 Options --------- Layout 2 ASCII 0 Keyboard 1 Movement Arrows Keybinds 0 Fullscreen 1 Font 32/Tamsyn Map View 50x44 Zoom Use 0% Tactical HUD 1 Map Filters NONE Filters NONE Steam 1 RUN: 32c3f9d2-4311-4b31-9dee-94fe401e91cb